bitfinex/quotes_SOLUSD_20251218
["timestamp","ask_amount","ask_price","bid_price","bid_amount"]
[1766094546365,0.66,119.65,119.63,6.66113696]
[1766094546564,0.66,119.65,119.62,6.66113696]
[1766094549371,0.66,119.65,119.62,2.79602672]
[1766094550086,0.66,119.65,119.6,61.1]
[1766094550284,0.66,119.64,119.61,2.79602672]
[1766094550898,0.66,119.64,119.6,2.79602672]
[1766094551586,0.66,119.63,119.54,9.16]
[1766094551776,0.66,119.61,119.57,2.79602672]
[1766094551976,0.66,119.61,119.58,2.79602672]
[1766094552386,9.16,119.6,119.58,2.79602672]
[1766094553372,9.16,119.62,119.59,2.79602672]
[1766094553577,9.16,119.62,119.57,8.36312274]
[1766094553578,0.71,119.63,119.6,2.79602672]
[1766094553995,9.16,119.62,119.6,2.79602672]
[1766094554382,0.71,119.63,119.61,2.79602672]
[1766094554587,0.71,119.62,119.54,18.8027178]
[1766094554787,0.71,119.62,119.57,2.79602672]
[1766094555790,0.71,119.62,119.53,8.80994492]
[1766094556104,0.71,119.61,119.53,8.36582482]
[1766094556295,0.71,119.61,119.56,2.79602672]
[1766094556488,0.71,119.6,119.56,2.79602672]
[1766094556804,9.87,119.59,119.55,2.79602672]
[1766094556977,0.71,119.58,119.55,2.79602672]
[1766094557184,0.71,119.58,119.54,2.79602672]
[1766094557891,0.71,119.58,119.55,2.79602672]
[1766094558091,9.87,119.58,119.55,2.79602672]
[1766094558279,9.16,119.59,119.56,2.79602672]
[1766094558474,9.87,119.59,119.56,2.79602672]
[1766094558780,9.87,119.59,119.55,2.79602672]
[1766094558996,9.87,119.59,119.56,2.79602672]
[1766094561709,9.87,119.59,119.55,2.79602672]
[1766094561877,9.87,119.59,119.53,8.36574136]
[1766094562080,9.87,119.59,119.55,2.79602672]
[1766094562492,0.71,119.59,119.55,2.79602672]
[1766094562693,9.87,119.59,119.56,2.79602672]
[1766094563905,0.71,119.58,119.55,2.79602672]
[1766094564685,0.71,119.58,119.55,63.89602672]
[1766094564886,0.71,119.58,119.55,61.1]
[1766094565508,9.87,119.58,119.55,63.89602672]
[1766094566818,17.52261054,119.58,119.52,61.1]
[1766094566992,0.71,119.57,119.53,2.79602672]
[1766094567385,0.71,119.57,119.53,4.37538088]
[1766094567900,0.71,119.57,119.54,4.37538088]
[1766094571692,0.71,119.57,119.52,61.1]
[1766094571896,0.71,119.57,119.53,4.37538088]
[1766094572092,0.71,119.56,119.53,65.47538088]
[1766094572395,0.71,119.55,119.51,4.37538088]
[1766094572591,0.71,119.53,119.49,4.37538088]
[1766094574104,0.71,119.53,119.47,8.56994499]
[1766094574413,0.71,119.53,119.49,4.37538088]
[1766094575310,9.16,119.54,119.51,4.37538088]
[1766094575517,0.71,119.57,119.53,4.37538088]
[1766094575707,9.16,119.56,119.53,4.37538088]
[1766094575909,9.87,119.56,119.53,4.37538088]
[1766094576109,9.87,119.56,119.52,4.37538088]
[1766094576501,0.71,119.56,119.52,4.37538088]
[1766094576824,0.71,119.56,119.53,4.37538088]
[1766094577331,9.87,119.56,119.53,4.37538088]
[1766094578320,0.71,119.56,119.54,4.37538088]
[1766094578899,0.71,119.56,119.53,65.47538088]
[1766094580737,0.71,119.59,119.55,4.37538088]
[1766094580904,9.16,119.58,119.56,4.37538088]
[1766094581726,9.16,119.58,119.55,65.47538088]
[1766094582033,9.87,119.58,119.55,65.47538088]
[1766094583930,9.87,119.58,119.53,21.10216752]
[1766094583931,9.16,119.61,119.56,4.37538088]
[1766094584133,0.71,119.6,119.56,4.37538088]
[1766094588335,0.71,119.59,119.56,4.37538088]
[1766094588720,0.71,119.59,119.57,4.37538088]
[1766094590834,0.71,119.59,119.56,4.37538088]
[1766094592624,8.36035321,119.62,119.57,4.37538088]
[1766094592841,9.16,119.61,119.57,4.37538088]
[1766094593013,0.71,119.6,119.57,4.37538088]
[1766094594028,9.87,119.6,119.57,4.37538088]
[1766094594613,0.71,119.59,119.57,4.37538088]
[1766094597313,0.71,119.59,119.55,65.47538088]
[1766094597514,0.71,119.58,119.55,65.47538088]
[1766094599228,0.71,119.58,119.55,61.1]
[1766094599434,0.71,119.58,119.55,65.47538088]
[1766094600338,0.71,119.58,119.55,61.1]
[1766094600715,0.71,119.58,119.54,65.47538088]
[1766094600914,0.71,119.57,119.54,61.1]
[1766094601134,0.71,119.57,119.53,4.37538088]
[1766094602459,0.71,119.55,119.52,4.37538088]
[1766094602745,0.71,119.53,119.47,8.56291541]
[1766094602924,0.71,119.51,119.48,4.37538088]
[1766094603124,0.71,119.51,119.47,4.57538088]
[1766094603327,0.71,119.5,119.47,0.2]
[1766094603928,0.71,119.49,119.45,0.2]
[1766094604145,9.87,119.48,119.45,0.2]
[1766094604536,9.87,119.48,119.45,4.57538088]
[1766094604837,9.87,119.48,119.45,0.2]
[1766094605739,0.71,119.48,119.45,0.2]
[1766094605944,9.16,119.47,119.45,0.2]
[1766094608040,9.87,119.47,119.45,0.2]
[1766094608627,0.71,119.5,119.42,0.2]
[1766094608860,0.71,119.48,119.44,4.37538088]
[1766094609948,0.71,119.44,119.42,0.2]
[1766094610325,9.16,119.43,119.42,0.2]
[1766094610551,9.87,119.43,119.42,0.2]
[1766094610729,9.87,119.43,119.4,0.2]
[1766094610924,0.71,119.42,119.4,0.2]
[1766094612139,0.71,119.42,119.39,0.2]
[1766094612335,9.16,119.41,119.39,5.26538088]
[1766094612953,9.16,119.41,119.39,0.89]
[1766094613256,9.16,119.41,119.39,5.26538088]
[1766094615058,10.38690003,119.48,119.41,0.7]
[1766094615263,9.86,119.48,119.44,5.07538088]
[1766094615929,18.22975818,119.48,119.44,5.07538088]
[1766094616144,18.22975818,119.48,119.43,4.37538088]
[1766094616145,17.54975818,119.48,119.43,4.37538088]
[1766094616345,0.68,119.47,119.43,4.37538088]
[1766094616549,0.68,119.47,119.44,4.37538088]
[1766094616838,0.68,119.45,119.4,4.37538088]
[1766094617144,0.68,119.44,119.4,4.37538088]
[1766094617460,9.18,119.43,119.4,4.37538088]
[1766094617762,8.38,119.44,119.42,5.07538088]
[1766094618052,9.18,119.46,119.42,5.07538088]
[1766094618438,0.68,119.47,119.42,5.07538088]
[1766094618646,9.86,119.47,119.43,4.37538088]
[1766094618844,9.18,119.46,119.43,4.37538088]
[1766094619057,0.68,119.47,119.43,4.37538088]
[1766094619266,9.86,119.47,119.43,4.37538088]
[1766094619442,0.68,119.46,119.42,5.07538088]
[1766094619838,0.68,119.46,119.43,4.37538088]
[1766094621157,0.68,119.46,119.42,61.8]
[1766094621364,0.68,119.46,119.42,66.17538088]
[1766094623467,0.68,119.46,119.43,4.37538088]
[1766094623857,9.86,119.46,119.43,4.37538088]
[1766094624362,0.68,119.46,119.42,4.37538088]
[1766094624682,0.68,119.46,119.41,4.37538088]
[1766094625461,9.86,119.46,119.41,4.37538088]
[1766094625866,0.68,119.45,119.39,61.3]
[1766094626067,0.68,119.44,119.39,4.57538088]
[1766094626284,20.92125657,119.5,119.43,8.75076176]
[1766094626567,0.05,119.57,119.42,104.67258415]
[1766094626568,0.05,119.56,119.53,8.80994492]
[1766094626862,0.78,119.58,119.55,4.37538088]
[1766094627254,0.78,119.58,119.53,8.80994492]
[1766094627255,0.78,119.58,119.56,4.37538088]
[1766094627564,0.78,119.58,119.56,6.6643602]
[1766094628276,0.78,119.58,119.57,6.6643602]
[1766094630942,0.78,119.58,119.56,6.6643602]
[1766094631168,0.78,119.58,119.57,6.6643602]
[1766094631370,0.78,119.58,119.55,6.6643602]
[1766094631687,0.68,119.57,119.5,71.41975393]
[1766094631859,9.18,119.56,119.53,7.3643602]
[1766094632448,9.18,119.56,119.53,6.6643602]
[1766094633872,9.86,119.56,119.53,6.6643602]
[1766094634070,0.68,119.55,119.51,67.7643602]
[1766094634652,0.68,119.55,119.52,6.6643602]
[1766094635679,0.68,119.55,119.51,61.1]
[1766094635867,9.84,119.54,119.51,67.7643602]
[1766094636058,0.68,119.54,119.52,6.6643602]
[1766094636257,9.84,119.54,119.51,6.6643602]
[1766094636457,9.84,119.54,119.52,6.6643602]
[1766094636663,0.68,119.57,119.52,6.6643602]
[1766094636968,0.68,119.55,119.52,6.6643602]
[1766094637390,0.73,119.67,119.57,0.99999999]
[1766094637592,0.73,119.67,119.61,6.6643602]
[1766094637593,6.7143602,119.67,119.61,6.6643602]
[1766094637795,0.68,119.65,119.61,6.6643602]
[1766094638266,9.84,119.65,119.61,17.10203316]
[1766094638465,0.68,119.64,119.61,10.43767296]
[1766094638665,0.68,119.64,119.61,17.10203316]
[1766094639959,0.68,119.64,119.61,10.43767296]
[1766094640184,0.68,119.64,119.61,17.10203316]
[1766094640392,9.84,119.64,119.61,17.10203316]
[1766094640575,9.84,119.64,119.61,10.43767296]
[1766094641270,9.84,119.64,119.61,6.6643602]
[1766094641472,0.68,119.63,119.6,6.6643602]
[1766094642090,9.16,119.64,119.6,6.6643602]
[1766094642304,9.84,119.64,119.6,6.6643602]
[1766094642468,9.84,119.64,119.56,9.18]
[1766094642469,0.68,119.6,119.54,6.6643602]
[1766094642670,0.66,119.59,119.54,6.6643602]
[1766094643081,0.66,119.59,119.55,6.6643602]
[1766094643491,0.66,119.58,119.51,9.84]
[1766094643676,0.66,119.58,119.52,17.17674545]
[1766094643875,0.66,119.58,119.53,6.6643602]
[1766094644496,0.66,119.56,119.51,8.80994492]
[1766094644789,0.66,119.54,119.5,24.18585089]
[1766094645094,0.66,119.54,119.5,6.6643602]
[1766094646783,0.66,119.54,119.49,15.47430512]
[1766094647394,0.66,119.54,119.49,8.80994492]
[1766094647700,0.66,119.53,119.48,6.6643602]
[1766094647904,0.66,119.52,119.48,6.6643602]
[1766094649289,7.3243602,119.52,119.46,6.6643602]
[1766094649489,0.66,119.51,119.47,6.6643602]
[1766094650680,0.66,119.51,119.44,27.61971401]
[1766094650886,0.66,119.51,119.46,6.6643602]
[1766094651712,0.66,119.51,119.47,6.6643602]
[1766094651913,0.66,119.5,119.47,6.6643602]
[1766094652484,0.66,119.5,119.45,8.37165002]
[1766094652797,0.66,119.5,119.47,6.6643602]
[1766094654117,9.21,119.62,119.49,6.6643602]
[1766094654283,0.11,119.68,119.61,7.66436019]
[1766094654284,0.57,119.67,119.61,7.66436019]
[1766094654491,0.57,119.67,119.62,7.66436019]
[1766094655216,0.57,119.67,119.63,0.99999999]
[1766094655902,9.16,119.66,119.63,0.99999999]
[1766094656083,25.45741744,119.69,119.63,7.66436019]
[1766094656287,9.16,119.68,119.63,7.66436019]
[1766094656518,0.66,119.67,119.63,7.66436019]
[1766094657290,0.66,119.67,119.63,0.99999999]
[1766094658982,0.66,119.67,119.62,7.66436019]
[1766094659180,0.66,119.66,119.62,0.99999999]
[1766094659386,0.66,119.66,119.63,0.99999999]
[1766094659585,0.66,119.66,119.62,0.99999999]
[1766094661204,8.35704994,119.66,119.62,0.99999999]
[1766094661411,0.66,119.65,119.61,6.6643602]
[1766094661612,9.16,119.64,119.62,0.99999999]
[1766094662832,0.7,119.63,119.6,0.99999999]
[1766094663111,0.7,119.63,119.61,0.99999999]
[1766094663322,0.7,119.63,119.61,0.27999999]
[1766094663626,9.16,119.62,119.61,0.27999999]
[1766094666216,0.7,119.64,119.61,6.94436019]
[1766094666402,9.16,119.63,119.61,6.94436019]
[1766094666713,9.16,119.63,119.59,9.51994492]
[1766094666714,0.7,119.64,119.62,0.27999999]
[1766094667016,9.16,119.63,119.62,6.94436019]
[1766094671408,9.16,119.63,119.62,0.27999999]
[1766094671617,8.44,119.63,119.62,6.94436019]
[1766094671925,8.35,119.63,119.62,6.94436019]
[1766094673821,0.1,119.72,119.71,0.27999999]
[1766094674024,9.82,119.74,119.71,0.27999999]
[1766094674025,9.82,119.74,119.71,6.94436019]
[1766094674209,9.77,119.74,119.72,6.6643602]
[1766094674523,0.1,119.75,119.73,6.94436019]
[1766094674826,0.1,119.75,119.74,6.6643602]
[1766094675005,9.26,119.75,119.74,0.27999999]
[1766094675199,0.1,119.75,119.74,6.94436019]
[1766094675404,9.16,119.75,119.74,6.94436019]
[1766094676013,8.3483493,119.79,119.73,0.27999999]
[1766094676014,9.16,119.77,119.73,0.27999999]
[1766094676223,0.66,119.76,119.7,10.43767296]
[1766094676437,0.66,119.76,119.71,6.6643602]
[1766094677227,0.66,119.76,119.7,10.43767296]
[1766094677416,0.66,119.76,119.71,6.6643602]
[1766094677622,8.35030581,119.76,119.71,6.6643602]
[1766094677816,0.66,119.75,119.71,6.6643602]
[1766094678316,8.35030581,119.76,119.67,17.94988984]
[1766094678317,0.66,119.74,119.67,17.94988984]
[1766094678521,9.82,119.74,119.7,6.6643602]
[1766094679421,9.82,119.74,119.71,6.6643602]
[1766094679422,0.66,119.74,119.71,6.6643602]
[1766094681725,6.6643602,119.74,119.68,6.6643602]
[1766094681926,0.66,119.73,119.69,6.6643602]
[1766094682127,20.87568696,119.76,119.7,6.6643602]
[1766094682128,6.6643602,119.76,119.7,6.6643602]
[1766094682321,0.66,119.75,119.7,6.6643602]
[1766094682624,0.66,119.74,119.69,6.6643602]
[1766094683221,0.66,119.73,119.68,6.6643602]
[1766094683808,0.66,119.73,119.69,6.6643602]
[1766094685436,0.66,119.73,119.7,6.6643602]
[1766094686532,0.66,119.73,119.68,17.49551599]
[1766094686533,0.66,119.73,119.69,6.6643602]
[1766094687827,0.66,119.73,119.68,6.6643602]
[1766094687828,0.66,119.72,119.68,6.6643602]
[1766094688231,0.66,119.72,119.67,6.6643602]
[1766094688232,0.66,119.71,119.67,6.6643602]
[1766094688730,7.3243602,119.71,119.65,26.26203316]
[1766094689033,0.66,119.7,119.65,15.8243602]
[1766094689238,0.66,119.69,119.65,15.8243602]
[1766094689438,0.66,119.69,119.65,19.97348414]
[1766094689936,0.66,119.69,119.65,9.16]
[1766094690538,0.66,119.68,119.64,10.81348414]
[1766094690735,0.66,119.68,119.63,10.81348414]
[1766094691334,0.66,119.68,119.64,10.81348414]
[1766094691536,9.014505,119.7,119.65,11.50348414]
[1766094692441,0.66,119.7,119.66,10.81348414]
[1766094693035,0.66,119.7,119.65,10.81348414]
[1766094693423,0.66,119.7,119.64,0.69]
[1766094693736,0.66,119.7,119.65,10.81348414]
[1766094694154,9.01435232,119.7,119.65,10.81348414]
[1766094694347,0.66,119.7,119.65,10.81348414]
[1766094694678,0.66,119.7,119.65,11.50348414]
[1766094695519,163.4,119.75,119.65,11.50348414]
[1766094695520,10.81348414,119.76,119.69,10.81348414]
[1766094695740,0.66,119.75,119.7,10.81348414]
[1766094695948,0.66,119.74,119.69,10.81348414]
[1766094696122,0.66,119.73,119.69,10.81348414]
[1766094699022,0.66,119.73,119.7,10.81348414]
[1766094699952,0.66,119.73,119.69,10.81348414]
[1766094700248,0.66,119.74,119.7,11.50348414]
[1766094700438,0.66,119.74,119.7,10.81348414]
[1766094701849,0.66,119.73,119.69,10.81348414]
[1766094702034,0.66,119.73,119.7,10.81348414]
[1766094706558,0.66,119.73,119.68,0.68]
[1766094706857,0.66,119.73,119.68,11.49348414]
[1766094707443,10.81348414,119.73,119.68,11.49348414]
[1766094707643,0.72,119.72,119.68,0.68]
[1766094708749,0.72,119.71,119.66,11.49348414]
[1766094709043,0.72,119.7,119.66,0.68]
[1766094710341,0.72,119.8,119.68,0.68]
[1766094710547,0.72,119.73,119.68,11.49348414]
[1766094711666,0.72,119.73,119.67,10.43767296]
[1766094711667,10.81348414,119.72,119.67,10.81348414]
[1766094711971,0.72,119.7,119.66,0.68]
[1766094713333,0.72,119.69,119.65,11.49348414]
[1766094713853,0.72,119.69,119.65,0.68]
[1766094714036,0.72,119.69,119.65,11.49348414]
[1766094715252,0.72,119.69,119.65,0.68]
[1766094716455,0.72,119.72,119.68,0.68]
[1766094717369,9.07314536,119.72,119.68,0.68]
[1766094718255,0.72,119.74,119.69,11.49348414]
[1766094718440,0.72,119.76,119.71,11.49348414]
[1766094718637,0.72,119.76,119.73,10.81348414]
[1766094719040,0.72,119.77,119.73,10.81348414]
[1766094719671,0.72,119.77,119.73,11.49348414]
[1766094719973,0.72,119.77,119.74,10.81348414]
[1766094720176,9.06831239,119.79,119.74,11.49348414]
[1766094720455,0.72,119.78,119.74,10.81348414]
[1766094722464,9.06864991,119.78,119.74,10.81348414]
[1766094722969,0.66,119.77,119.73,0.68]
[1766094723265,0.66,119.76,119.71,11.47348414]
[1766094723565,0.66,119.76,119.72,10.81348414]
[1766094724173,0.66,119.76,119.71,11.47348414]
[1766094725148,9.01047058,119.76,119.71,11.47348414]
[1766094725355,18.17047058,119.76,119.71,11.47348414]
[1766094726360,0.66,119.75,119.7,10.81348414]
[1766094726540,0.66,119.74,119.7,10.81348414]
[1766094726935,0.66,119.74,119.66,27.60424777]
[1766094726936,10.43767296,119.72,119.62,10.81348414]
[1766094727240,0.56,119.72,119.67,10.81348414]
[1766094727473,0.56,119.72,119.68,0.66]
[1766094727649,8.91295534,119.72,119.68,0.66]
[1766094729142,0.56,119.76,119.71,10.81348414]
[1766094729451,9.16,119.75,119.7,11.47348414]
[1766094730848,11.37348414,119.74,119.68,0.66]
[1766094731173,8.35282325,119.72,119.68,11.47348414]
[1766094731666,8.35282325,119.72,119.68,0.66]
[1766094731965,163.4,119.78,119.68,10.81348414]
[1766094732166,11.37348414,119.75,119.7,10.81348414]
[1766094732539,11.37348414,119.75,119.69,11.47348414]
[1766094732937,11.37348414,119.75,119.7,0.69]
[1766094733150,9.16,119.74,119.7,0.69]
[1766094733954,19.72466186,119.75,119.7,0.69]
[1766094734149,9.16,119.74,119.7,0.69]
[1766094734348,17.511483,119.74,119.7,0.69]
[1766094734849,9.16,119.74,119.7,0.69]
[1766094735455,17.51147495,119.74,119.65,80.34761788]
[1766094735656,0.56,119.71,119.66,10.81348414]
[1766094735867,0.56,119.7,119.65,10.81348414]
[1766094736063,0.56,119.7,119.65,11.50348414]
[1766094736260,19.72831735,119.7,119.65,0.69]
[1766094741778,19.16831735,119.7,119.65,0.69]
[1766094742093,10.81348414,119.68,119.63,10.81348414]
[1766094742249,9.16,119.67,119.64,0.69]
[1766094742457,19.16722496,119.71,119.65,11.50348414]
[1766094742656,9.16,119.7,119.66,0.69]
[1766094743889,9.72,119.7,119.66,0.69]
[1766094744104,8.91462565,119.7,119.66,0.69]
[1766094744404,9.16,119.69,119.66,0.69]
[1766094744704,8.91462565,119.7,119.66,0.69]
[1766094744873,9.16,119.69,119.66,0.69]
[1766094745972,17.5149175,119.69,119.66,0.69]
[1766094746167,9.16,119.68,119.66,0.69]
[1766094748271,9.16,119.68,119.65,0.69]
[1766094755670,8.91499096,119.69,119.65,0.69]
[1766094755877,9.16,119.68,119.65,0.69]
[1766094758787,3.35512453,119.67,119.63,0.69]
[1766094758984,3.35512453,119.66,119.62,0.69]
[1766094759178,9.13873522,119.65,119.62,0.69]
[1766094760007,29.24484226,119.68,119.62,0.69]
[1766094760008,11.95512453,119.67,119.62,0.69]
[1766094760212,0.65,119.68,119.63,2.79512453]
[1766094760390,9.00563704,119.68,119.64,0.69]
[1766094760803,0.65,119.67,119.64,0.69]
[1766094762516,9.00634964,119.67,119.64,0.69]
[1766094762676,0.69,119.65,119.6,3.47512453]
[1766094762882,0.69,119.71,119.65,0.68]
[1766094763100,9.85,119.7,119.66,3.47512453]
[1766094763281,0.69,119.7,119.66,3.47512453]
[1766094763611,9.16,119.69,119.66,3.47512453]
[1766094763904,0.69,119.7,119.66,0.68]
[1766094764200,9.16,119.69,119.66,3.47512453]
[1766094764412,9.16,119.69,119.66,0.68]
[1766094764804,0.69,119.68,119.64,0.68]
[1766094764994,0.69,119.68,119.64,3.47512453]
[1766094765612,0.69,119.68,119.64,0.68]
[1766094766481,9.04631319,119.67,119.62,3.47512453]
[1766094766681,9.16,119.66,119.63,0.68]
[1766094769414,8.35596237,119.68,119.63,0.68]
[1766094769714,9.04596237,119.68,119.63,0.68]
[1766094769922,9.16,119.67,119.63,0.68]
[1766094770411,9.85,119.67,119.63,0.68]
[1766094770623,18.20661301,119.67,119.63,0.68]
[1766094772290,9.04661301,119.67,119.63,0.68]
[1766094772599,9.16,119.66,119.63,0.68]
[1766094773302,0.69,119.65,119.61,0.68]
[1766094775608,17.5170591,119.66,119.61,2.79512453]
[1766094775793,18.2070591,119.66,119.62,0.68]
[1766094776111,9.85,119.66,119.62,0.68]
[1766094776305,11.84090445,119.68,119.63,0.68]
[1766094776602,9.16,119.67,119.63,0.68]
[1766094776808,9.16,119.66,119.63,0.68]
[1766094776999,0.69,119.65,119.6,2.79512453]
[1766094777206,0.69,119.65,119.61,0.68]
[1766094780695,9.85,119.65,119.61,0.68]
[1766094781517,9.85,119.65,119.61,61.1]
[1766094781718,9.85,119.65,119.62,0.72]
[1766094782012,0.69,119.67,119.62,0.72]
[1766094782216,9.16,119.67,119.64,0.72]
[1766094783004,9.85,119.67,119.64,0.72]
[1766094784118,0.69,119.67,119.64,0.72]
[1766094784304,18.20646293,119.67,119.64,0.72]
[1766094784618,18.20646293,119.67,119.63,0.72]
[1766094787520,18.20646293,119.67,119.63,61.82]
[1766094788720,9.16,119.66,119.63,61.82]
[1766094791807,18.17706856,119.66,119.61,63.89512453]
[1766094792111,9.82,119.66,119.62,0.67]
[1766094792440,9.16,119.66,119.62,0.67]
[1766094793130,9.05665468,119.67,119.62,0.67]
[1766094793323,9.16,119.66,119.62,0.67]
[1766094797631,17.51703806,119.66,119.62,61.77]
[1766094797835,2.79512453,119.64,119.6,0.72]
[1766094798034,0.7,119.65,119.59,2.79512453]
[1766094798211,0.7,119.65,119.6,0.72]
[1766094798415,0.7,119.65,119.61,0.72]
[1766094798712,9.86,119.65,119.61,0.72]
[1766094799330,0.7,119.64,119.61,0.72]
[1766094799537,0.7,119.64,119.59,0.72]
[1766094800032,3.49512453,119.63,119.59,0.72]
[1766094800335,0.7,119.66,119.61,0.72]
[1766094800534,0.7,119.66,119.61,2.79512453]
[1766094800722,0.7,119.66,119.62,0.72]
[1766094800923,9.86,119.66,119.62,0.72]
[1766094801719,0.7,119.66,119.62,0.72]
[1766094801926,9.86,119.66,119.62,0.72]
[1766094802348,8.35697566,119.67,119.62,0.72]
[1766094802519,9.16,119.66,119.62,0.72]
[1766094802849,9.86,119.66,119.62,0.72]
[1766094804139,0.7,119.67,119.62,2.79512453]
[1766094804315,0.7,119.67,119.63,0.72]
[1766094805034,9.05626747,119.68,119.63,0.72]
[1766094805228,18.21626747,119.68,119.63,0.72]
[1766094805426,0.7,119.67,119.63,0.72]
[1766094806242,9.05644484,119.67,119.63,0.72]
[1766094806437,32.04235235,119.67,119.59,9.16]
[1766094806638,0.7,119.64,119.6,0.72]
[1766094806938,0.7,119.64,119.58,0.92]
[1766094806939,0.64,119.61,119.58,0.92]
[1766094807113,12.59512453,119.61,119.58,0.2]
[1766094807310,9.8,119.61,119.58,0.2]
[1766094807514,11.95512453,119.61,119.58,0.2]
[1766094808316,20.3156855,119.61,119.58,0.2]
[1766094808944,8.35840855,119.64,119.59,0.72]
[1766094809123,0.7,119.63,119.59,0.72]
[1766094811020,9.86,119.63,119.59,0.72]
[1766094811640,9.86,119.63,119.58,0.2]
[1766094811641,0.7,119.61,119.58,0.2]
[1766094815247,5.07312042,119.61,119.58,0.2]
[1766094816451,0.7,119.59,119.57,0.2]
[1766094816648,5.07312042,119.59,119.57,0.2]
[1766094818055,4.37312042,119.58,119.55,0.72]
[1766094818263,4.37312042,119.57,119.53,0.92]
[1766094818426,0.7,119.55,119.53,0.2]
[1766094818626,14.23312042,119.56,119.53,0.2]
[1766094819740,4.37312042,119.55,119.5,0.72]
[1766094820047,4.99312042,119.54,119.5,0.72]
[1766094820639,13.35869654,119.54,119.5,0.72]
[1766094821030,13.53312042,119.53,119.5,0.72]
[1766094821231,9.16,119.53,119.5,0.72]
[1766094822329,21.52701889,119.58,119.5,5.09312042]
[1766094822636,4.37312042,119.56,119.51,0.72]
[1766094823262,12.73721811,119.56,119.51,0.72]
[1766094823724,4.37312042,119.54,119.51,0.72]
[1766094823925,13.53312042,119.54,119.51,0.72]
[1766094824964,13.53312042,119.54,119.5,0.65]
[1766094824965,22.51858616,119.54,119.5,0.65]
[1766094826475,14.15312042,119.54,119.5,0.65]
[1766094826676,9.16,119.53,119.5,0.65]
[1766094828666,4.37312042,119.54,119.5,0.65]
[1766094828853,13.53312042,119.54,119.5,0.65]
[1766094830073,14.15312042,119.54,119.5,0.65]
[1766094833346,4.37312042,119.58,119.5,4.37312042]
[1766094833347,0.62,119.57,119.5,4.37312042]
[1766094833547,9.78,119.57,119.52,0.65]
[1766094834363,0.62,119.57,119.52,0.65]
[1766094834663,9.16,119.56,119.52,0.65]
[1766094835391,0.62,119.55,119.51,0.65]
[1766094835686,0.62,119.57,119.53,0.65]
[1766094837279,0.62,119.56,119.51,4.37312042]
[1766094837495,9.78,119.56,119.52,0.65]
[1766094838181,4.37312042,119.53,119.49,0.85]
[1766094838383,14.15312042,119.52,119.49,0.2]
[1766094838761,4.37312042,119.51,119.49,0.2]
[1766094838969,9.16,119.52,119.47,0.2]
[1766094839182,4.37312042,119.5,119.47,0.2]
[1766094839483,4.79312042,119.5,119.47,0.2]
[1766094841185,9.16,119.49,119.47,0.2]
[1766094841975,13.53312042,119.51,119.47,0.92]
[1766094842186,13.53312042,119.51,119.47,0.2]
[1766094842187,4.37312042,119.49,119.47,0.2]
[1766094842503,13.95312042,119.48,119.43,0.72]
[1766094842675,4.37312042,119.46,119.43,0.72]
[1766094843283,4.37312042,119.45,119.41,9.72994492]
[1766094843475,4.37312042,119.45,119.42,0.72]
[1766094844966,13.97312042,119.46,119.42,0.72]